bitfinex-derivatives/quotes_BTCF0:USTF0_20250620
["timestamp","ask_amount","ask_price","bid_price","bid_amount"]
[1750410515834,0.2833031,105910.0,105900.0,0.96811258]
[1750410516029,0.37723418,105910.0,105900.0,1.52229258]
[1750410516730,0.37723418,105910.0,105900.0,1.52221258]
[1750410516925,0.37723418,105910.0,105900.0,0.7326]
[1750410517234,0.37723418,105910.0,105900.0,1.5058209]
[1750410518237,0.37723418,105910.0,105900.0,0.95632]
[1750410518535,0.2833031,105910.0,105900.0,0.95628]
[1750410518738,0.37752322,105910.0,105900.0,0.95628]
[1750410519939,0.37752322,105910.0,105900.0,1.1451009]
[1750410520138,0.37752322,105910.0,105900.0,0.95628]
[1750410520436,0.37752322,105910.0,105900.0,1.1451009]
[1750410523547,0.2833031,105910.0,105900.0,1.1451009]
[1750410524152,0.2833031,105910.0,105900.0,0.95644]
[1750410524348,0.2833031,105910.0,105900.0,1.1452609]
[1750410524746,0.2833031,105910.0,105900.0,0.011]
[1750410525139,1.01213359,105910.0,105900.0,0.011]
[1750410525447,1.01213492,105910.0,105900.0,0.011]
[1750410525651,0.88025456,105910.0,105900.0,0.011]
[1750410526639,1.31910256,105910.0,105900.0,0.011]
[1750410526843,1.06910256,105910.0,105900.0,0.011]
[1750410527849,0.88025456,105910.0,105900.0,0.1998209]
[1750410528052,0.65761456,105910.0,105900.0,0.1998209]
[1750410528351,0.65761456,105910.0,105900.0,0.5606209]
[1750410528554,0.5633921,105910.0,105900.0,0.5606209]
[1750410529253,0.5633921,105910.0,105900.0,0.1998209]
[1750410529458,0.4252321,105910.0,105900.0,0.1998209]
[1750410529653,0.5634321,105910.0,105900.0,0.5606209]
[1750410530254,0.2532031,105910.0,105900.0,1.16153248]
[1750410530450,0.25888344,105910.0,105900.0,1.25291979]
[1750410530654,0.35308346,105910.0,105900.0,1.25291979]
[1750410530952,0.2216031,105910.0,105900.0,1.28361979]
[1750410531151,0.0328,105910.0,105900.0,1.28361979]
[1750410531855,0.2216031,105910.0,105900.0,1.28361979]
[1750410532255,0.0328,105910.0,105900.0,1.28361979]
[1750410533757,0.2216031,105910.0,105900.0,0.69909979]
[1750410533958,0.2216031,105910.0,105900.0,1.28369979]
[1750410534452,0.0024,105910.0,105900.0,1.28369979]
[1750410534646,0.1912031,105910.0,105900.0,1.28369979]
[1750410535557,0.0024,105910.0,105900.0,1.28369979]
[1750410535856,0.1912031,105910.0,105900.0,1.28369979]
[1750410536358,0.2240031,105910.0,105900.0,1.28369979]
[1750410536859,0.0024,105910.0,105900.0,1.21369979]
[1750410537059,0.1908031,105910.0,105900.0,1.32369979]
[1750410537252,0.1912031,105910.0,105900.0,1.32369979]
[1750410538060,0.1912031,105910.0,105900.0,0.72270821]
[1750410538254,0.1912031,105910.0,105900.0,0.59839979]
[1750410538459,0.0024,105910.0,105900.0,1.15211979]
[1750410538666,0.002,105910.0,105900.0,1.21371979]
[1750410538966,0.0024,105910.0,105900.0,1.21371979]
[1750410539567,0.1912031,105910.0,105900.0,1.21371979]
[1750410539867,0.0024,105910.0,105900.0,1.21371979]
[1750410540561,0.1912031,105910.0,105900.0,1.21371979]
[1750410540860,0.1912031,105910.0,105900.0,0.62939979]
[1750410541055,0.1912031,105910.0,105900.0,1.21371979]
[1750410541260,0.2221031,105910.0,105900.0,1.21371979]
[1750410543567,0.2221031,105910.0,105900.0,1.21363979]
[1750410543766,0.2874031,105910.0,105900.0,1.18293979]
[1750410544067,0.2221031,105910.0,105900.0,1.21603979]
[1750410544366,0.1912031,105910.0,105900.0,1.20758792]
[1750410544567,0.1912031,105910.0,105900.0,0.62258792]
[1750410544768,0.1912031,105910.0,105900.0,1.20762792]
[1750410544967,0.2224031,105910.0,105900.0,1.20762792]
[1750410547669,0.283283,105890.0,105880.0,0.4080125]
[1750410547974,0.45668649,105900.0,105890.0,0.1888388]
[1750410548167,0.3151521,105900.0,105890.0,0.56603038]
[1750410548375,0.3151521,105900.0,105890.0,1.31883038]
[1750410548769,0.3155521,105900.0,105890.0,0.54419158]
[1750410549073,0.3155521,105900.0,105890.0,1.12983158]
[1750410549374,0.3155521,105900.0,105890.0,1.31867038]
[1750410549674,0.3165521,105900.0,105890.0,1.32367038]
[1750410550371,0.3175521,105900.0,105890.0,1.32467038]
[1750410550775,0.2856521,105900.0,105890.0,1.32467038]
[1750410551271,0.39191501,105900.0,105890.0,1.32467038]
[1750410551472,0.39191501,105900.0,105890.0,1.29207038]
[1750410551672,0.39191501,105900.0,105890.0,1.22207038]
[1750410551872,0.42391501,105900.0,105890.0,1.22207038]
[1750410552068,0.42391501,105900.0,105890.0,1.19037038]
[1750410553769,0.42391501,105900.0,105890.0,0.82957038]
[1750410554271,0.42391501,105900.0,105890.0,1.15767038]
[1750410555878,0.32950021,105900.0,105890.0,1.15767038]
[1750410556176,0.07676291,105900.0,105890.0,1.15767038]
[1750410556478,0.07716291,105900.0,105890.0,1.53007038]
[1750410556677,0.07676291,105900.0,105890.0,1.19007038]
[1750410556875,0.07716291,105900.0,105890.0,1.19007038]
[1750410557082,0.07716291,105900.0,105890.0,1.54007038]
[1750410557378,0.0024,105900.0,105890.0,1.72893438]
[1750410557569,0.002,105900.0,105890.0,1.75993438]
[1750410557770,0.0024,105900.0,105890.0,1.75993438]
[1750410558166,0.0024,105900.0,105890.0,1.57107038]
[1750410559573,0.0024,105900.0,105890.0,1.86577038]
[1750410560680,0.0024,105900.0,105890.0,1.21673038]
[1750410560871,0.191221,105900.0,105890.0,1.48237038]
[1750410561279,0.222221,105900.0,105890.0,1.51297038]
[1750410561578,0.222221,105900.0,105890.0,0.92733038]
[1750410561779,0.222221,105900.0,105890.0,1.35723038]
[1750410561974,0.222221,105900.0,105890.0,1.35715038]
[1750410562971,0.222221,105900.0,105890.0,1.35711038]
[1750410563377,0.222221,105900.0,105890.0,0.63263038]
[1750410563778,0.222221,105900.0,105890.0,1.35691038]
[1750410564076,0.222221,105900.0,105890.0,1.35683038]
[1750410564778,0.0334,105900.0,105890.0,1.35683038]
[1750410564978,0.0334,105900.0,105890.0,1.33683038]
[1750410565273,0.07881526,105900.0,105890.0,1.69683038]
[1750410565475,0.0024,105900.0,105890.0,1.72953038]
[1750410565675,0.002,105900.0,105890.0,1.72949038]
[1750410565882,0.0024,105900.0,105890.0,1.72949038]
[1750410567172,0.0024,105900.0,105890.0,1.36949038]
[1750410567379,0.0024,105900.0,105890.0,1.44949038]
[1750410568583,0.0024,105900.0,105890.0,1.66949038]
[1750410568885,0.09667291,105900.0,105890.0,1.66949038]
[1750410570783,0.0024,105900.0,105890.0,1.66949038]
[1750410571776,0.07781163,105900.0,105890.0,1.41949038]
[1750410571977,0.07781163,105900.0,105890.0,0.69533038]
[1750410572178,0.0024,105900.0,105890.0,1.42117038]
[1750410572379,0.0024,105900.0,105890.0,1.72117038]
[1750410572578,0.0024,105900.0,105890.0,1.37117038]
[1750410573487,0.191221,105900.0,105890.0,1.37117038]
[1750410573986,0.07770003,105900.0,105890.0,0.64533038]
[1750410574180,0.10780003,105900.0,105890.0,1.37073038]
[1750410575396,0.07770003,105900.0,105890.0,1.37073038]
[1750410575691,0.07770003,105900.0,105890.0,0.64533038]
[1750410575891,0.07770003,105900.0,105890.0,1.37073038]
[1750410576191,0.07770003,105900.0,105890.0,1.67073038]
[1750410577102,0.15271103,105900.0,105890.0,1.67073038]
[1750410577390,0.15311103,105900.0,105890.0,1.67073038]
[1750410578186,0.15271103,105900.0,105890.0,1.67073038]
[1750410578390,0.07770003,105900.0,105890.0,1.67073038]
[1750410579281,0.0024,105900.0,105890.0,1.67073038]
[1750410579486,0.0024,105900.0,105890.0,1.85959438]
[1750410579684,0.09627291,105900.0,105890.0,1.85959438]
[1750410579883,0.0024,105900.0,105890.0,1.85959438]
[1750410580290,0.07781558,105900.0,105890.0,1.85959438]
[1750410581096,0.08081558,105900.0,105890.0,1.85859438]
[1750410581297,0.08481558,105900.0,105890.0,1.85459438]
[1750410581694,0.02593228,105900.0,105890.0,1.85459438]
[1750410581899,8e-08,105900.0,105890.0,1.85459438]
[1750410583387,0.05655137,105900.0,105890.0,1.85459438]
[1750410594203,0.05655137,105900.0,105890.0,1.66573038]
[1750410595101,0.05655137,105900.0,105890.0,1.85459438]
[1750410595701,0.05655137,105900.0,105890.0,1.26799438]
[1750410595902,0.05655137,105900.0,105890.0,1.85299438]
[1750410596698,0.05655137,105900.0,105890.0,1.07913038]
[1750410596905,0.05655137,105900.0,105890.0,1.66385038]
[1750410597101,0.08745137,105900.0,105890.0,1.01583038]
[1750410597406,0.13648625,105900.0,105890.0,1.60067038]
[1750410598305,0.13648625,105900.0,105890.0,0.87703038]
[1750410598502,0.13648625,105900.0,105890.0,1.60075038]
[1750410599403,0.13648625,105900.0,105890.0,0.87703038]
[1750410599606,0.13648625,105900.0,105890.0,1.60071038]
[1750410601099,0.09017505,105900.0,105890.0,1.60071038]
[1750410601294,8e-08,105910.0,105900.0,0.66041608]
[1750410601496,7e-08,105930.0,105920.0,0.1887854]
[1750410601696,7e-08,105930.0,105920.0,2.0379811]
[1750410602006,0.0018,105950.0,105940.0,0.1887498]
[1750410602303,0.0018,105950.0,105940.0,2.0261413]
[1750410602711,0.0325,105960.0,105950.0,0.1887319]
[1750410602914,0.0325,105960.0,105950.0,1.2358234]
[1750410603102,0.0008,105970.0,105960.0,0.1887141]
[1750410603299,0.12797291,105980.0,105970.0,0.1886963]
[1750410603510,0.0345,105980.0,105970.0,1.4709678]
[1750410603702,0.0337,105980.0,105970.0,1.4709678]
[1750410603901,0.0341,105980.0,105970.0,1.4709678]
[1750410604110,0.0337,105980.0,105970.0,1.4709678]
[1750410604311,0.0341,105980.0,105970.0,1.4709678]
[1750410604710,0.0986,105980.0,105970.0,1.4709678]
[1750410604906,0.0986,105980.0,105970.0,1.4712878]
[1750410605109,0.0982,105980.0,105970.0,1.4712878]
[1750410605411,0.0986,105980.0,105970.0,1.4712878]
[1750410606013,0.0986,105980.0,105970.0,1.4722878]
[1750410606207,0.0986,105980.0,105970.0,1.4732878]
[1750410606804,0.0664,105980.0,105970.0,1.5356878]
[1750410607810,0.0664,105980.0,105970.0,1.52648345]
[1750410608210,0.066,105980.0,105970.0,1.54330398]
[1750410608517,0.0014,105980.0,105970.0,1.54330398]
[1750410610110,0.0014,105980.0,105970.0,1.83800398]
[1750410610713,0.001,105980.0,105970.0,1.83700398]
[1750410610914,0.0044,105980.0,105970.0,1.83800398]
[1750410611306,0.0044,105980.0,105970.0,2.02672398]
[1750410612411,0.0094,105980.0,105970.0,2.02672398]
[1750410615812,0.0094,105980.0,105970.0,1.23621248]
[1750410616021,0.0094,105980.0,105970.0,1.97628398]
[1750410616219,0.1048,105980.0,105970.0,1.97628398]
[1750410620020,0.1048,105980.0,105970.0,1.25260398]
[1750410620220,0.1048,105980.0,105970.0,1.97600398]
[1750410620420,0.1048,105980.0,105970.0,1.97564398]
[1750410622623,0.0717,105980.0,105970.0,1.97564398]
[1750410623418,0.0404,105980.0,105970.0,1.97564398]
[1750410623624,0.0094,105980.0,105970.0,1.97564398]
[1750410627927,0.06546046,105980.0,105970.0,1.97564398]
[1750410629131,0.0094,105980.0,105970.0,1.97564398]
[1750410631526,0.0842458,105980.0,105970.0,1.93734839]
[1750410633428,0.06592476,105980.0,105970.0,1.93734839]
[1750410633830,0.06592476,105980.0,105970.0,1.95453055]
[1750410636031,0.0094,105980.0,105970.0,1.95453055]
[1750410636230,0.06596421,105980.0,105970.0,1.95453055]
[1750410636733,0.0094,105980.0,105970.0,1.95453055]
[1750410641430,0.0094,105980.0,105970.0,1.94532684]
[1750410641640,0.0094,105980.0,105970.0,1.92814468]
[1750410643334,0.0094,105980.0,105970.0,1.56734468]
[1750410643731,0.0094,105980.0,105970.0,2.28894468]
[1750410644233,0.0094,105980.0,105970.0,2.30631733]
[1750410645739,0.0842458,105980.0,105970.0,2.30631733]
[1750410647640,0.0842458,105980.0,105970.0,1.58471733]
[1750410647840,0.0842458,105980.0,105970.0,2.30631733]
[1750410648136,0.17030463,106000.0,105990.0,0.188661]
[1750410648341,0.26560463,106000.0,105990.0,2.28914216]
[1750410648644,0.26480463,106000.0,105990.0,1.90914216]
[1750410648938,0.26520463,106000.0,105990.0,1.90914216]
[1750410649330,0.26520463,106000.0,105990.0,2.23914216]
[1750410649541,0.26620463,106000.0,105990.0,2.24414216]
[1750410649839,0.26620463,106000.0,105990.0,1.91414216]
[1750410650238,0.26620463,106000.0,105990.0,1.9244534]
[1750410651643,0.26620463,106000.0,105990.0,1.90493883]
[1750410652846,0.26620463,106000.0,105990.0,1.32289883]
[1750410653043,0.26620463,106000.0,105990.0,1.90477883]
[1750410656346,0.26620463,106000.0,105990.0,1.92162846]
[1750410656539,0.26580463,106000.0,105990.0,2.29801996]
[1750410656739,0.26620463,106000.0,105990.0,2.36131996]
[1750410657047,0.23460463,106000.0,105990.0,2.36131996]
[1750410657243,0.0014,106000.0,105990.0,2.34492846]
[1750410657448,0.0014,106000.0,105990.0,2.36131996]
[1750410657640,0.001,106000.0,105990.0,2.36131996]
[1750410657841,0.0014,106000.0,105990.0,2.36131996]
[1750410658146,0.07686452,106000.0,105990.0,2.36131996]
[1750410661642,0.15212681,106000.0,105990.0,1.71613996]
[1750410661950,0.21502681,106000.0,105990.0,2.29749996]
[1750410664145,0.21502681,106000.0,105990.0,1.57865996]
[1750410664341,0.21502681,106000.0,105990.0,2.29749996]
[1750410664543,0.2338352,106000.0,105990.0,1.75757581]
[1750410664747,0.2338352,106000.0,105990.0,2.09757581]
[1750410667457,0.4224783,106000.0,105990.0,2.09757581]
[1750410667658,0.4224783,106000.0,105990.0,1.51621581]
[1750410667956,0.2338352,106000.0,105990.0,2.09757581]
[1750410669160,0.2338352,106000.0,105990.0,1.80287581]
[1750410670561,0.4224783,106000.0,105990.0,1.80287581]
[1750410671057,0.2338352,106000.0,105990.0,1.47287581]
[1750410671960,0.13956229,106000.0,105990.0,1.47287581]
[1750410672160,0.32820539,106000.0,105990.0,1.47287581]
[1750410672562,0.13956229,106000.0,105990.0,1.47287581]
[1750410673261,0.32820539,106000.0,105990.0,1.47287581]
[1750410673866,0.13956229,106000.0,105990.0,1.47287581]
[1750410675760,0.2338352,106000.0,105990.0,1.47287581]
[1750410676961,0.4224784,106000.0,105990.0,1.47287581]
[1750410677153,0.2338352,106000.0,105990.0,1.47287581]
[1750410677358,0.4224784,106000.0,105990.0,1.47287581]
[1750410677759,0.32820549,106000.0,105990.0,1.47287581]
[1750410678367,0.32820549,106000.0,105990.0,1.46367242]
[1750410678569,0.46018757,106000.0,105990.0,1.46367242]
[1750410678865,0.46018757,106000.0,105990.0,1.45367242]
[1750410680869,0.27154437,106000.0,105990.0,1.45367242]
[1750410681065,0.20864437,106000.0,105990.0,1.45367242]
[1750410681367,0.20864437,106000.0,105990.0,1.51717242]
[1750410681770,0.20824437,106000.0,105990.0,1.51717242]
[1750410681960,0.20864437,106000.0,105990.0,1.51717242]
[1750410683370,0.17095719,106000.0,105990.0,1.86717242]
[1750410683978,0.17095719,106000.0,105990.0,1.51717242]
[1750410684267,0.17095719,106000.0,105990.0,1.85717242]
[1750410684471,0.17095719,106000.0,105990.0,1.51717242]
[1750410684669,0.17095719,106000.0,105990.0,1.91356392]
[1750410684857,0.17095719,106000.0,105990.0,1.86717242]
[1750410685063,0.17055719,106000.0,105990.0,1.85356392]
[1750410685363,0.17095719,106000.0,105990.0,1.53356392]
[1750410685571,0.17095719,106000.0,105990.0,1.85356392]
[1750410685965,0.17095719,106000.0,105990.0,1.53356392]
[1750410686870,0.17095719,106000.0,105990.0,1.82826392]
[1750410688271,0.17095719,106000.0,105990.0,1.81906065]
[1750410689870,0.17095719,106000.0,105990.0,2.13906065]
[1750410690064,0.17095719,106000.0,105990.0,1.80678962]
[1750410690470,0.17095719,106000.0,105990.0,2.13678962]
[1750410690672,0.17095719,106000.0,105990.0,2.14678962]
[1750410691370,0.17095719,106000.0,105990.0,2.11678962]
[1750410692074,0.17095719,106000.0,105990.0,2.18678962]
[1750410692279,0.17095719,106000.0,105990.0,1.80678962]
[1750410692970,0.17095719,106000.0,105990.0,2.18678962]
[1750410693481,0.17095719,106000.0,105990.0,2.17678962]
[1750410693883,0.17095719,106000.0,105990.0,1.80678962]
[1750410694178,0.17095719,106000.0,105990.0,2.11678962]
[1750410694384,0.0014,106000.0,105990.0,2.11678962]
[1750410694581,0.22727698,106010.0,106000.0,0.1886431]
[1750410694882,0.0960949,106010.0,106000.0,1.0754146]
[1750410695076,0.001,106010.0,106000.0,1.1062146]
[1750410695277,0.07686603,106010.0,106000.0,1.1062146]
[1750410695681,0.07646603,106010.0,106000.0,1.1062146]
[1750410695884,0.07686603,106010.0,106000.0,1.4009146]
[1750410696279,0.09928626,106010.0,106000.0,1.4019146]
[1750410696585,0.09888626,106010.0,106000.0,1.4019146]
[1750410696773,0.09928626,106010.0,106000.0,1.4019146]
[1750410697480,0.02382023,106010.0,106000.0,1.4019146]
[1750410698685,0.08029599,106010.0,106000.0,1.9831146]
[1750410699086,0.02382023,106010.0,106000.0,1.9831146]
[1750410699387,0.08029713,106010.0,106000.0,1.9831146]
[1750410706091,0.08028109,106010.0,106000.0,1.9831146]
[1750410707989,0.0008,106020.0,106010.0,0.1886253]
[1750410708191,0.13829083,106030.0,106020.0,0.1886075]
[1750410708497,0.10889083,106030.0,106020.0,1.9833075]
[1750410708804,0.07601086,106030.0,106020.0,1.63049799]
[1750410708992,0.07601086,106030.0,106020.0,1.96049799]
[1750410709191,0.07521086,106030.0,106020.0,1.96049799]
[1750410709394,0.07561086,106030.0,106020.0,2.00049799]
[1750410709592,0.07561086,106030.0,106020.0,1.72049799]
[1750410710090,0.07961086,106030.0,106020.0,1.72049799]
[1750410710499,0.08261086,106030.0,106020.0,1.72049799]
[1750410711499,0.14591086,106030.0,106020.0,1.72049799]
[1750410711997,0.2226787,106030.0,106020.0,1.72049799]
[1750410713195,0.007,106030.0,106020.0,1.97725567]
[1750410713395,0.0074,106030.0,106020.0,1.68255567]
[1750410713695,0.0199,106030.0,106020.0,1.68255567]
[1750410713896,0.0203,106030.0,106020.0,1.35255567]
[1750410714095,0.0203,106030.0,106020.0,1.50255567]
[1750410714292,0.0203,106030.0,106020.0,1.73255567]
[1750410718300,0.0955175,106030.0,106020.0,1.73255567]
[1750410719197,0.0955175,106030.0,106020.0,1.01495567]
[1750410719500,0.1602175,106030.0,106020.0,2.02709567]
[1750410719995,0.085,106030.0,106020.0,1.56873799]
[1750410720298,0.085,106030.0,106020.0,1.57873799]
[1750410721797,0.2735901,106030.0,106020.0,0.67756583]
[1750410722000,0.40557218,106030.0,106020.0,1.23617805]
[1750410722299,0.40557218,106030.0,106020.0,1.09957805]
[1750410723297,0.42791631,106030.0,106020.0,1.1302475]
[1750410723603,0.39009757,106030.0,106020.0,1.1302475]
[1750410723802,0.39009757,106030.0,106020.0,0.5494075]
[1750410723995,0.29593423,106030.0,106020.0,1.1302475]
[1750410724300,0.55644484,106030.0,106020.0,0.5494075]
[1750410724594,0.55644484,106030.0,106020.0,1.1302475]
[1750410729603,0.4622221,106030.0,106020.0,1.11797838]
[1750410729799,0.59420418,106030.0,106020.0,1.11797838]
[1750410730402,0.4622221,106030.0,106020.0,1.11797838]
[1750410730606,0.59411673,106030.0,106020.0,1.11797838]
[1750410731904,0.59411673,106030.0,106020.0,1.10877592]
[1750410732907,0.59411673,106030.0,106020.0,0.92016842]
[1750410733095,0.60548473,106030.0,106020.0,0.92016842]
[1750410733298,0.58548473,106030.0,106020.0,0.92016842]
[1750410733499,0.2735901,106030.0,106020.0,0.92016842]
[1750410734105,0.2735901,106030.0,106020.0,1.10877632]
[1750410734702,0.40538339,106030.0,106020.0,1.10877632]
[1750410735500,0.40538339,106030.0,106020.0,1.09343888]
[1750410736012,0.40538339,106030.0,106020.0,0.95186243]
[1750410736203,0.2735901,106030.0,106020.0,0.7694479]
[1750410738306,0.40533808,106030.0,106020.0,0.7694479]
[1750410739898,0.44533808,106030.0,106020.0,0.7694479]
[1750410741908,0.40533808,106030.0,106020.0,0.76024547]
[1750410743114,0.58533808,106030.0,106020.0,0.76024547]
[1750410743314,0.40533808,106030.0,106020.0,0.76024547]
[1750410743714,0.2735901,106030.0,106020.0,0.76024547]
[1750410746022,0.40536766,106030.0,106020.0,0.76024547]
[1750410746615,0.40536766,106030.0,106020.0,0.79194547]
[1750410747823,0.34066766,106030.0,106020.0,1.01117105]
[1750410748024,0.34066766,106030.0,106020.0,1.04367105]
[1750410748224,0.34026766,106030.0,106020.0,1.04367105]
[1750410748924,0.34066766,106030.0,106020.0,1.04367105]
[1750410750026,0.2088901,106030.0,106020.0,1.04367105]
[1750410752022,0.2088901,106030.0,106020.0,1.03446924]
[1750410753023,0.2084901,106030.0,106020.0,1.05086074]
[1750410753223,0.30271991,106030.0,106020.0,1.05086074]
[1750410753426,0.30311991,106030.0,106020.0,1.05086074]
[1750410753622,0.11452981,106030.0,106020.0,1.05086074]
[1750410753833,0.15207756,106030.0,106020.0,1.05086074]
[1750410754031,0.15167756,106030.0,106020.0,1.05086074]
[1750410754331,0.43490038,106030.0,106020.0,1.25086074]
[1750410754525,0.30312282,106030.0,106020.0,1.25086074]
[1750410755127,0.30312282,106030.0,106020.0,1.23859266]
[1750410757527,0.30312282,106030.0,106020.0,1.03859266]
[1750410759027,0.11453272,106030.0,106020.0,1.03859266]
[1750410759331,0.30312282,106030.0,106020.0,1.03859266]
[1750410761936,0.30312282,106030.0,106020.0,1.02939163]
[1750410762435,0.11453272,106030.0,106020.0,1.02939163]
[1750410763535,0.0203,106030.0,106020.0,1.02939163]
[1750410765833,0.0203,106030.0,106020.0,1.39019163]
[1750410766033,0.1144793,106030.0,106020.0,1.39019163]
[1750410767732,0.1144793,106030.0,106020.0,1.74019163]
[1750410768042,0.1144793,106030.0,106020.0,1.83651163]
[1750410768837,0.1144793,106030.0,106020.0,1.84661293]
[1750410769644,0.1140793,106030.0,106020.0,1.53661293]
[1750410769942,0.1144793,106030.0,106020.0,1.53661293]
[1750410771650,0.0203,106030.0,106020.0,1.53661293]
[1750410771936,0.0203,106030.0,106020.0,1.87741225]
[1750410772138,0.15167756,106030.0,106020.0,1.86514465]
[1750410772335,0.24626873,106030.0,106020.0,1.86514465]
[1750410772537,0.11409117,106030.0,106020.0,1.86514465]
[1750410772740,0.11449117,106030.0,106020.0,1.86514465]
[1750410773433,0.09564805,106030.0,106020.0,1.86514465]
[1750410773637,0.09524805,106030.0,106020.0,1.86514465]
[1750410773938,0.09564805,106030.0,106020.0,1.86514465]
[1750410775540,0.09564805,106030.0,106020.0,2.15984465]
[1750410781143,0.09564805,106030.0,106020.0,2.14757796]
[1750410782037,0.09564805,106030.0,106020.0,2.13837806]
[1750410784249,0.03616615,106030.0,106020.0,2.32701006]
[1750410784438,0.001,106040.0,106030.0,0.1885901]
[1750410784740,0.001,106040.0,106030.0,0.9462816]
[1750410784946,0.0014,106040.0,106030.0,0.9462816]
[1750410785748,0.0024,106040.0,106030.0,1.2409816]
[1750410785964,0.15689117,106060.0,106050.0,0.1885546]
[1750410786138,0.0319,106060.0,106050.0,1.6430661]
[1750410786339,0.0323,106060.0,106050.0,1.7056661]
[1750410786542,0.0319,106060.0,106050.0,1.7056661]
[1750410786850,0.10848177,106060.0,106050.0,1.7056661]
[1750410787046,0.0004,106060.0,106050.0,2.0456661]
[1750410787246,0.0004,106060.0,106050.0,2.0496661]
[1750410787654,0.0659,106070.0,106060.0,0.1885368]
[1750410787852,0.0667,106070.0,106060.0,0.55346524]
[1750410789145,0.0667,106070.0,106060.0,0.55646524]
[1750410789650,0.0667,106070.0,106060.0,0.89646524]
[1750410789848,0.0667,106070.0,106060.0,0.96306524]
[1750410790045,0.0659,106070.0,106060.0,0.96306524]
[1750410790352,0.0663,106070.0,106060.0,0.94306524]
[1750410791853,0.0663,106070.0,106060.0,0.62306524]
[1750410792054,0.10919686,106070.0,106060.0,0.93306524]
[1750410792354,0.0346,106070.0,106060.0,0.93306524]
[1750410792848,0.0346,106070.0,106060.0,0.94317502]
[1750410793356,0.0008,106080.0,106070.0,0.188519]
[1750410793555,0.0317,106090.0,106080.0,0.1885013]
[1750410793747,0.0317,106090.0,106080.0,0.9156928]
[1750410794055,0.001,106100.0,106090.0,0.1884835]
[1750410794247,0.12689117,106100.0,106090.0,1.145715]
[1750410794448,0.2037284,106100.0,106090.0,1.1293235]
[1750410794858,0.21374439,106100.0,106090.0,1.1293235]
[1750410795349,0.21374439,106100.0,106090.0,1.4993235]
[1750410795554,0.21374439,106100.0,106090.0,1.1201284]
[1750410796446,0.15275322,106100.0,106090.0,1.1365199]
[1750410797047,0.14273723,106100.0,106090.0,1.1365199]
[1750410797247,0.14273723,106100.0,106090.0,1.4965199]
[1750410797462,0.14273723,106100.0,106090.0,1.1365199]
[1750410798760,0.14273723,106100.0,106090.0,1.5065199]
[1750410799362,0.15285681,106100.0,106090.0,1.5065199]
[1750410799664,0.24704798,106100.0,106090.0,1.1365199]
[1750410800067,0.15285681,106100.0,106090.0,1.1365199]
[1750410802470,0.34132291,106100.0,106090.0,0.5400884]
[1750410802676,0.43551408,106100.0,106090.0,0.7591284]
[1750410802972,0.43551408,106100.0,106090.0,0.7468676]
[1750410803571,0.34132291,106100.0,106090.0,0.7468676]
[1750410803877,0.47310047,106100.0,106090.0,0.7468676]
[1750410804175,0.34132291,106100.0,106090.0,0.7468676]
[1750410805375,0.34132291,106100.0,106090.0,0.73767177]
[1750410806177,0.34132291,106100.0,106090.0,0.15783177]
[1750410806364,0.34132291,106100.0,106090.0,0.73763177]
[1750410807077,0.41628997,106100.0,106090.0,0.73763177]
[1750410808576,0.34132291,106100.0,106090.0,0.73763177]
[1750410808781,0.4163275,106100.0,106090.0,0.73763177]
[1750410811082,0.4163275,106100.0,106090.0,0.75402327]
[1750410811286,0.10953723,106100.0,106090.0,1.11482327]
[1750410811585,0.15207093,106100.0,106090.0,1.49686231]
[1750410811882,0.0014,106100.0,106090.0,1.48686231]
[1750410812081,0.001,106100.0,106090.0,1.48686231]
[1750410812282,0.0014,106100.0,106090.0,1.48686231]
[1750410812482,0.0014,106100.0,106090.0,1.53686231]
[1750410813179,0.05770476,106100.0,106090.0,1.83156231]
[1750410813482,0.05770476,106100.0,106090.0,2.0200743]
[1750410813673,0.05730476,106100.0,106090.0,2.09662764]
[1750410813874,0.0750337,106110.0,106100.0,0.1884661]
[1750410814073,0.0750337,106110.0,106100.0,1.0740976]
[1750410814279,0.1511026,106120.0,106110.0,0.1884483]
[1750410814479,0.1511026,106120.0,106110.0,1.5377198]
[1750410814683,0.1503026,106120.0,106110.0,1.2077198]
[1750410814878,0.1503026,106120.0,106110.0,1.5777198]
[1750410814879,0.1507026,106120.0,106110.0,1.5777198]
[1750410815074,0.1507026,106120.0,106110.0,1.5577198]
[1750410815271,0.1507026,106120.0,106110.0,1.2077198]
[1750410815484,0.15079394,106120.0,106110.0,1.5585265]
[1750410815684,0.15079394,106120.0,106110.0,1.1985265]
[1750410815887,0.15079394,106120.0,106110.0,1.5593265]
[1750410816274,0.15079394,106120.0,106110.0,1.8693265]
[1750410816482,0.15081041,106120.0,106110.0,1.8693265]
[1750410816882,0.15181041,106120.0,106110.0,1.8693265]
[1750410817379,0.15181041,106120.0,106110.0,1.85706917]
[1750410817587,0.15181041,106120.0,106110.0,1.54706917]
[1750410817891,0.0766689,106120.0,106110.0,1.54706917]
[1750410818690,0.15179013,106120.0,106110.0,1.54706917]
[1750410818886,0.15179013,106120.0,106110.0,1.86706917]
[1750410818887,0.0766689,106120.0,106110.0,1.86706917]
[1750410819093,0.0766689,106120.0,106110.0,1.85706917]
[1750410819280,0.15179056,106120.0,106110.0,1.53067767]
[1750410819483,0.15179056,106120.0,106110.0,1.54706917]
[1750410820396,0.34022106,106120.0,106110.0,1.54706917]
[1750410820579,0.15179056,106120.0,106110.0,1.68294917]
[1750410820785,0.21359056,106120.0,106110.0,1.68294917]
[1750410821498,0.40202116,106120.0,106110.0,1.68294917]
[1750410821796,0.21359056,106120.0,106110.0,1.68294917]
[1750410822600,0.40202116,106120.0,106110.0,1.68294917]
[1750410823290,0.3268995,106120.0,106110.0,1.68294917]
[1750410823593,0.3268995,106120.0,106110.0,1.67069148]
[1750410824194,0.1068689,106120.0,106110.0,1.67069148]
[1750410824395,0.1058689,106120.0,106110.0,1.67169148]
[1750410824694,0.2942994,106120.0,106110.0,1.67169148]
[1750410825194,0.2942994,106120.0,106110.0,1.67269148]
[1750410825396,0.2942994,106120.0,106110.0,1.66349817]
[1750410826588,0.33925996,106120.0,106110.0,1.66349817]
[1750410827798,0.15082946,106120.0,106110.0,1.66349817]
[1750410828093,0.33925996,106120.0,106110.0,1.66349817]
[1750410828503,0.33925996,106120.0,106110.0,0.93154667]
[1750410828699,0.40085996,106120.0,106110.0,1.44858667]
[1750410832302,0.40085996,106120.0,106110.0,0.86914667]
[1750410832598,0.40085996,106120.0,106110.0,1.44854667]
[1750410833799,0.40085996,106120.0,106110.0,0.72694667]
[1750410834001,0.40085996,106120.0,106110.0,1.08774667]
[1750410835399,0.41936951,106120.0,106110.0,0.49608822]
[1750410835600,0.41936951,106120.0,106110.0,1.06629439]
[1750410836294,0.41936951,106120.0,106110.0,0.48689439]
[1750410836596,0.41936951,106120.0,106110.0,1.06625439]
[1750410840599,0.3256994,106120.0,106110.0,1.09785439]
[1750410841107,0.41983668,106120.0,106110.0,1.09785439]